bitfinex-derivatives/quotes_BTCF0:USTF0_20250504
["timestamp","ask_amount","ask_price","bid_price","bid_amount"]
[1746397988575,0.2105656,94968.0,94967.0,0.28674125]
[1746397988774,0.2105922,94956.0,94945.0,0.1333]
[1746397988971,0.05,94956.0,94955.0,0.47753529]
[1746397989164,0.118,94956.0,94955.0,0.58753529]
[1746397989367,0.07272,94980.0,94955.0,0.80727747]
[1746397989566,0.1,95041.0,94955.0,0.80727747]
[1746397989567,0.3608,94999.0,94978.0,0.62668777]
[1746397989764,0.210508,94994.0,94993.0,0.25537777]
[1746397989970,0.440508,94994.0,94993.0,0.25537777]
[1746397990272,0.348,94994.0,94993.0,0.25387777]
[1746397990669,0.56654879,94994.0,94993.0,0.25387777]
[1746397990864,0.92734879,94994.0,94993.0,0.25387777]
[1746397991071,0.92734879,94994.0,94988.0,0.1321]
[1746397991072,0.2105191,94989.0,94988.0,0.1321]
[1746397991273,0.6105191,94989.0,94988.0,0.1321]
[1746397991564,1.2905191,94989.0,94988.0,0.1321]
[1746397992267,1.4085191,94989.0,94988.0,0.1321]
[1746397992482,0.7785191,94989.0,94988.0,0.1321]
[1746397992673,0.7285191,94989.0,94988.0,0.1321]
[1746397992875,0.7685191,94989.0,94988.0,0.1321]
[1746397993173,0.7474991,94989.0,94988.0,0.1321]
[1746397993377,0.7074991,94989.0,94988.0,0.1321]
[1746397993676,0.6874991,94989.0,94988.0,0.1321]
[1746397993868,0.6874991,94989.0,94988.0,0.39648777]
[1746397993869,0.208,94989.0,94988.0,0.39648777]
[1746397994374,0.19749,94989.0,94988.0,0.39648777]
[1746397994578,0.20749,94989.0,94988.0,0.39648777]
[1746397995274,0.3180091,94989.0,94988.0,0.1321]
[1746397995478,1.3580091,94989.0,94988.0,0.2641]
[1746397996079,0.2105723,94965.0,94964.0,0.1275]
[1746397996281,0.2105878,94958.0,94957.0,0.00157965]
[1746397996583,0.5800778,94958.0,94957.0,0.00157965]
[1746397996783,0.2106122,94947.0,94946.0,0.1275]
[1746397996985,1.1806122,94947.0,94946.0,0.17709378]
[1746397997185,0.6086122,94947.0,94946.0,0.17709378]
[1746397997386,0.158,94947.0,94946.0,0.43097155]
[1746397997580,0.048,94947.0,94946.0,0.38137777]
[1746397997773,0.2481022,94947.0,94946.0,0.43097868]
[1746397997977,0.01749,94947.0,94946.0,0.43097868]
[1746397998176,0.0526513,94951.0,94948.0,0.25387777]
[1746397998377,0.2106122,94947.0,94946.0,0.38137777]
[1746397998584,0.6006122,94947.0,94946.0,0.38137777]
[1746397998787,0.00158066,94971.0,94952.0,0.2106]
[1746397999084,0.2105811,94961.0,94960.0,0.25387777]
[1746397999388,0.6005811,94961.0,94960.0,0.25387777]
[1746397999578,0.2105922,94956.0,94955.0,0.1387]
[1746397999775,0.06,94956.0,94955.0,0.14921]
[1746397999978,0.8505922,94956.0,94955.0,0.26438777]
[1746398000184,0.6005922,94956.0,94955.0,0.26438777]
[1746398000787,0.04,94956.0,94955.0,0.47498217]
[1746398000984,0.04,94956.0,94955.0,0.26438777]
[1746398001479,0.2832865,94968.0,94960.0,0.2105831]
[1746398001680,0.26,94968.0,94962.0,0.3608]
[1746398001883,0.00158066,94971.0,94970.0,0.2105612]
[1746398002084,0.00158066,94971.0,94970.0,0.83574897]
[1746398002291,0.00158066,94971.0,94970.0,0.26438777]
[1746398002490,0.00158066,94971.0,94970.0,0.5767364]
[1746398002988,0.02158066,94971.0,94970.0,0.7872976]
[1746398003600,0.00158066,94971.0,94970.0,0.7872976]
[1746398004088,0.00158066,94971.0,94970.0,0.9052976]
[1746398005489,0.01158066,94971.0,94970.0,0.9052976]
[1746398005690,0.00158066,94971.0,94970.0,0.9052976]
[1746398007890,0.01158066,94971.0,94970.0,0.9052976]
[1746398008295,0.00158066,94971.0,94970.0,0.9052976]
[1746398008589,0.02998,94979.0,94978.0,0.2105434]
[1746398008786,0.02998,94979.0,94978.0,0.83573117]
[1746398009093,0.2105203,94989.0,94983.0,0.2105309]
[1746398009293,0.041,94986.0,94985.0,0.25387777]
[1746398009494,0.2515257,94986.0,94985.0,0.5591264]
[1746398009696,0.2515257,94986.0,94985.0,0.31575863]
[1746398010291,0.3695257,94986.0,94985.0,0.31575863]
[1746398010991,0.3695257,94986.0,94985.0,0.04974863]
[1746398011194,0.2105525,94974.0,94970.0,0.3608]
[1746398011386,0.2205525,94974.0,94973.0,0.01051]
[1746398011587,0.2205525,94974.0,94973.0,0.31415586]
[1746398011989,0.2305525,94974.0,94973.0,0.31415586]
[1746398012383,0.2105878,94958.0,94957.0,0.00157965]
[1746398012590,0.5713878,94958.0,94957.0,0.0513562]
[1746398012793,1.0513878,94958.0,94957.0,0.0513562]
[1746398012996,1.5713878,94958.0,94957.0,0.0513562]
[1746398013192,1.55216,94958.0,94941.0,0.1379]
[1746398013395,0.3608,94949.0,94942.0,0.14201]
[1746398013593,0.4008,94949.0,94948.0,0.21061]
[1746398013787,0.118,94958.0,94957.0,0.21059]
[1746398014091,0.3608,94969.0,94964.0,0.2105735]
[1746398014396,0.4208,94969.0,94968.0,0.25387777]
[1746398014590,0.7508,94969.0,94968.0,0.30325069]
[1746398014790,0.4308,94969.0,94968.0,0.31376069]
[1746398015885,0.4308,94969.0,94968.0,0.52432629]
[1746398016497,0.0015,94975.0,94974.0,0.2105523]
[1746398016690,0.0015,94975.0,94974.0,0.52431299]
[1746398016896,0.0015,94975.0,94974.0,0.65631299]
[1746398017096,0.0015,94975.0,94974.0,0.90001299]
[1746398018094,0.0015,94975.0,94974.0,0.64613522]
[1746398018289,0.2015299,94980.0,94975.0,0.210549]
[1746398018603,0.04,94980.0,94977.0,0.2105454]
[1746398018899,0.04,94980.0,94978.0,0.18677292]
[1746398019192,0.600029,94980.0,94979.0,0.04937292]
[1746398019395,0.250539,94980.0,94979.0,0.05988292]
[1746398019598,0.250539,94980.0,94979.0,0.32728292]
[1746398019898,0.270539,94980.0,94979.0,0.32728292]
[1746398020401,0.210029,94980.0,94979.0,0.32728292]
[1746398020591,1.240029,94980.0,94979.0,0.32728292]
[1746398021102,1.358029,94980.0,94979.0,0.32728292]
[1746398021403,1.347519,94980.0,94979.0,0.32728292]
[1746398021596,0.407519,94980.0,94979.0,0.32728292]
[1746398021801,0.407519,94980.0,94979.0,0.53782412]
[1746398021802,0.198,94980.0,94979.0,0.53782412]
[1746398022302,0.08,94980.0,94979.0,0.32728292]
[1746398022501,0.08,94980.0,94979.0,0.53782412]
[1746398022702,0.04,94980.0,94979.0,0.53782412]
[1746398024887,0.250539,94980.0,94979.0,0.58116069]
[1746398025100,0.260539,94980.0,94979.0,0.58116069]
[1746398025402,0.640539,94980.0,94979.0,0.31908292]
[1746398027799,0.640539,94980.0,94979.0,0.57296069]
[1746398028306,0.950539,94980.0,94979.0,0.57296069]
[1746398028695,0.950539,94980.0,94979.0,0.30556069]
[1746398028905,0.950539,94980.0,94968.0,0.21412686]
[1746398028906,0.2105634,94969.0,94968.0,0.21412686]
[1746398029212,0.2105878,94958.0,94957.0,0.26911046]
[1746398029407,1.6913878,94958.0,94957.0,0.31933867]
[1746398029603,1.6913878,94958.0,94957.0,0.32984867]
[1746398030010,1.9581878,94958.0,94957.0,0.32984867]
[1746398030206,1.9581878,94958.0,94957.0,0.31933867]
[1746398030609,1.0376,94958.0,94957.0,0.31933867]
[1746398030806,0.4408,94958.0,94957.0,0.79431644]
[1746398031002,0.3608,94958.0,94957.0,0.58372644]
[1746398031214,0.6808,94958.0,94957.0,0.70172644]
[1746398031515,0.9013878,94958.0,94957.0,0.43419563]
[1746398032008,0.9013878,94958.0,94957.0,0.18031786]
[1746398032202,0.9013878,94958.0,94957.0,0.06231786]
[1746398032401,1.1769878,94958.0,94957.0,0.06231786]
[1746398033419,1.1664778,94958.0,94957.0,0.06231786]
[1746398033715,1.1559678,94958.0,94957.0,0.06231786]
[1746398034217,0.80608,94958.0,94957.0,0.06231786]
[1746398034612,0.51608,94958.0,94957.0,0.06231786]
[1746398034808,0.7161578,94958.0,94957.0,0.06231786]
[1746398035605,0.04,94958.0,94957.0,0.27290786]
[1746398035813,0.2105801,94962.0,94958.0,0.2105869]
[1746398036013,0.2105824,94961.0,94959.0,0.57630598]
[1746398036214,0.3652724,94961.0,94960.0,0.05022821]
[1746398036520,0.1852,94961.0,94960.0,0.06073821]
[1746398036819,0.1852,94961.0,94960.0,0.32823821]
[1746398037119,0.1852,94961.0,94960.0,0.44623821]
[1746398037417,0.17469,94961.0,94960.0,0.44623821]
[1746398037807,0.17469,94961.0,94960.0,0.91069938]
[1746398038013,0.05,94961.0,94960.0,0.70011598]
[1746398038315,0.2405811,94961.0,94960.0,0.70011598]
[1746398038514,0.2605811,94961.0,94960.0,0.70011598]
[1746398039319,0.2500711,94961.0,94960.0,0.70011598]
[1746398039617,0.03949,94961.0,94960.0,0.70011598]
[1746398039807,0.2500711,94961.0,94960.0,0.70011598]
[1746398040606,0.6108711,94961.0,94960.0,0.17873821]
[1746398040806,0.5913811,94961.0,94960.0,0.17873821]
[1746398041020,0.9413811,94961.0,94960.0,0.17873821]
[1746398041217,0.6808711,94961.0,94960.0,0.06073821]
[1746398041423,0.5866711,94961.0,94960.0,0.06073821]
[1746398041718,0.9474711,94961.0,94960.0,0.06073821]
[1746398042114,0.8474711,94961.0,94960.0,0.06073821]
[1746398042311,1.1380711,94961.0,94960.0,0.06073821]
[1746398042508,0.5713811,94961.0,94960.0,0.44131598]
[1746398042712,0.02,94961.0,94960.0,0.44131598]
[1746398042912,0.03,94961.0,94960.0,0.44131598]
[1746398043112,0.03,94961.0,94960.0,0.69881598]
[1746398043425,0.2405811,94961.0,94960.0,0.69881598]
[1746398043924,0.2300711,94961.0,94960.0,0.69881598]
[1746398044722,0.2595611,94961.0,94960.0,0.69881598]
[1746398045227,0.2690511,94961.0,94960.0,0.69881598]
[1746398046515,0.6108,94961.0,94952.0,0.21338898]
[1746398046720,0.5713989,94953.0,94952.0,0.21338898]
[1746398046924,1.6229989,94953.0,94952.0,0.2628729]
[1746398047118,1.8358049,94953.0,94952.0,0.2628729]
[1746398047522,2.0266049,94953.0,94952.0,0.2628729]
[1746398047822,1.9212889,94953.0,94952.0,0.2628729]
[1746398048018,1.3931889,94953.0,94952.0,0.2628729]
[1746398048227,1.91427891,94953.0,94952.0,0.2628729]
[1746398048626,2.01959491,94953.0,94952.0,0.2004262]
[1746398048819,0.0526578,94939.0,94916.0,0.37406804]
[1746398049013,0.5714588,94926.0,94917.0,0.2609]
[1746398049330,1.5609488,94926.0,94925.0,0.05853374]
[1746398050031,1.8155488,94926.0,94925.0,0.05853374]
[1746398050327,1.93100334,94926.0,94925.0,0.05853374]
[1746398051213,1.95848647,94926.0,94925.0,0.03363748]
[1746398051522,0.2106921,94911.0,94910.0,0.01582606]
[1746398051711,0.2106921,94911.0,94910.0,0.27598291]
[1746398051712,0.9708,94911.0,94910.0,0.27598291]
[1746398051913,1.1616,94911.0,94910.0,0.52986068]
[1746398052117,1.05109,94911.0,94910.0,0.43716638]
[1746398052313,0.4916,94911.0,94910.0,0.43716638]
[1746398052514,1.08109,94911.0,94910.0,0.43716638]
[1746398052819,0.31949,94911.0,94910.0,0.43716638]
[1746398053124,1.1817821,94911.0,94910.0,0.06528861]
[1746398053421,1.0712721,94911.0,94910.0,0.06528861]
[1746398053627,1.2822921,94911.0,94910.0,0.06528861]
[1746398054030,1.5105921,94911.0,94910.0,0.06528861]
[1746398054229,1.6285921,94911.0,94910.0,0.06528861]
[1746398054419,1.6180821,94911.0,94910.0,0.06528861]
[1746398054725,1.6180821,94911.0,94875.0,0.0526924]
[1746398054726,0.210732,94893.0,94892.0,0.20925112]
[1746398054927,1.562332,94893.0,94892.0,0.20645727]
[1746398055119,2.497316,94893.0,94892.0,0.04924015]
[1746398055320,0.2107431,94888.0,94887.0,0.20518081]
[1746398055521,1.1507431,94888.0,94887.0,0.20518081]
[1746398055727,1.3314511,94888.0,94887.0,0.25576482]
[1746398056139,1.220708,94888.0,94887.0,0.25576482]
[1746398056325,1.5494511,94888.0,94887.0,0.04616482]
[1746398056519,1.5494511,94888.0,94876.0,0.42560392]
[1746398056520,1.6440904,94888.0,94865.0,0.29120538]
[1746398056831,0.2108387,94845.0,94844.0,0.19742403]
[1746398057029,0.98,94845.0,94844.0,0.24776742]
[1746398057223,1.098,94845.0,94844.0,0.24776742]
[1746398057428,0.72603953,94845.0,94844.0,0.24776742]
[1746398057629,0.55603953,94845.0,94844.0,0.24776742]
[1746398057825,0.36603953,94845.0,94844.0,0.24776742]
[1746398058025,0.99064057,94845.0,94844.0,0.37766742]
[1746398058224,0.58347927,94845.0,94844.0,0.13052614]
[1746398058423,0.3608,94849.0,94844.0,0.13052614]
[1746398058625,0.2108365,94846.0,94845.0,0.05034339]
[1746398058818,1.03794386,94846.0,94845.0,0.05034339]
[1746398059027,0.05794386,94846.0,94845.0,0.26118209]
[1746398059226,0.2107979,94864.0,94851.0,0.2108252]
[1746398059430,0.09083825,94860.0,94853.0,0.2108203]
[1746398059626,0.00083825,94860.0,94854.0,0.26116199]
[1746398059828,0.00775966,94860.0,94855.0,0.05034339]
[1746398060128,0.4,94860.0,94856.0,0.18024339]
[1746398060328,0.3,94860.0,94859.0,0.2108076]
[1746398060541,0.2,94860.0,94859.0,0.05034339]
[1746398060728,1.5348901,94860.0,94859.0,0.05034339]
[1746398060928,1.4240848,94860.0,94859.0,0.05034339]
[1746398061134,2.0830901,94860.0,94859.0,0.05034339]
[1746398061334,1.8330901,94860.0,94859.0,0.05034339]
[1746398061529,0.9166648,94860.0,94859.0,0.05034339]
[1746398061727,1.0674701,94860.0,94859.0,0.05034339]
[1746398062036,0.8566648,94860.0,94859.0,0.05034339]
[1746398062223,0.5266648,94860.0,94859.0,0.26115099]
[1746398062426,0.498,94860.0,94859.0,0.41114339]
[1746398062739,0.0526964,94869.0,94859.0,0.76656339]
[1746398063030,0.0526964,94869.0,94860.0,0.31174339]
[1746398063031,0.2107898,94867.0,94860.0,0.31174339]
[1746398063238,0.42,94867.0,94861.0,0.26114629]
[1746398063438,0.1357,94894.0,94880.0,0.2107609]
[1746398063654,0.0015,94905.0,94895.0,0.2107276]
[1746398063933,0.11,94896.0,94895.0,0.41114339]
[1746398064126,0.0526774,94903.0,94895.0,0.16834339]
[1746398064323,0.0526774,94903.0,94895.0,0.118]
[1746398064324,0.2107254,94896.0,94895.0,0.118]
[1746398064532,0.2607254,94896.0,94895.0,0.16742751]
[1746398064932,0.26283297,94896.0,94895.0,0.16742751]
[1746398065131,1.60363297,94896.0,94895.0,0.04942751]
[1746398065441,0.0526878,94885.0,94868.0,0.0802]
[1746398065633,0.07,94885.0,94875.0,0.2107719]
[1746398065935,0.05,94885.0,94884.0,0.210752]
[1746398066135,0.3608,94894.0,94884.0,0.58091844]
[1746398066439,0.2107476,94886.0,94885.0,0.17873094]
[1746398067029,0.00210757,94896.0,94889.0,0.0526851]
[1746398067238,0.00210757,94896.0,94895.0,0.2107276]
[1746398067438,0.00210757,94896.0,94895.0,0.26015854]
[1746398067832,0.00210757,94896.0,94895.0,0.04943094]
[1746398068037,0.21283297,94896.0,94895.0,0.04943094]
[1746398068234,0.27262623,94896.0,94895.0,0.16743094]
[1746398068429,0.06190083,94896.0,94895.0,0.52823094]
[1746398068633,0.00190083,94896.0,94895.0,0.98353854]
[1746398068933,0.21262623,94896.0,94895.0,0.30663094]
[1746398069133,0.21211623,94896.0,94895.0,0.18863094]
[1746398069334,0.01,94896.0,94895.0,0.18863094]
[1746398069531,0.2107254,94896.0,94895.0,0.18863094]
[1746398069736,0.2207254,94896.0,94895.0,0.18863094]
[1746398070441,0.2502154,94896.0,94895.0,0.18863094]
[1746398070642,0.5902154,94896.0,94895.0,0.18863094]
[1746398071344,0.5997054,94896.0,94895.0,0.18863094]
[1746398071945,1.2697054,94896.0,94895.0,0.18863094]
[1746398072243,0.5991954,94896.0,94895.0,0.18863094]
[1746398073039,1.2191954,94896.0,94874.0,0.3608]
[1746398073246,0.2002531,94879.0,94874.0,0.3608]
[1746398073435,1.1602531,94879.0,94874.0,0.3608]
[1746398073739,1.1602531,94879.0,94878.0,0.17998525]
[1746398073740,0.2902531,94879.0,94878.0,0.17998525]
[1746398073943,1.2602531,94879.0,94878.0,0.17998525]
[1746398074133,1.178,94879.0,94878.0,0.17998525]
[1746398074338,1.27023348,94879.0,94878.0,0.17998525]
[1746398074642,0.53972348,94879.0,94878.0,0.17998525]
[1746398074840,0.54972348,94879.0,94878.0,0.17998525]
[1746398075038,0.53972348,94879.0,94878.0,0.17998525]
[1746398075239,0.55921348,94879.0,94878.0,0.17998525]
[1746398075438,1.23921348,94879.0,94878.0,0.17998525]
[1746398075739,1.0387631,94879.0,94878.0,0.17998525]
[1746398075943,1.3887631,94879.0,94878.0,0.17998525]
[1746398076143,1.4941591,94879.0,94878.0,0.04908525]
[1746398076441,1.5762591,94879.0,94878.0,0.04908525]
[1746398077341,1.594476,94879.0,94865.0,0.00105412]
[1746398077640,0.2108187,94854.0,94853.0,0.16646988]
[1746398077943,1.5816187,94854.0,94853.0,0.21577572]
[1746398078244,1.5816187,94854.0,94853.0,0.04930584]
[1746398078245,1.5711087,94854.0,94853.0,0.04930584]
[1746398078741,0.052707,94850.0,94840.0,0.008]
[1746398078941,0.13069917,94827.0,94820.0,0.1356]
[1746398079243,0.2108898,94822.0,94821.0,0.04938633]
[1746398079440,1.1208898,94822.0,94821.0,0.04938633]
[1746398079745,0.02,94822.0,94821.0,0.04938633]
[1746398080241,1.1508898,94822.0,94821.0,0.04938633]
[1746398080434,0.4508898,94822.0,94821.0,0.04938633]
[1746398080641,0.03949,94822.0,94821.0,0.04938633]
[1746398080837,0.5881686,94822.0,94821.0,0.04938633]
[1746398081234,0.6408898,94822.0,94821.0,0.04938633]
[1746398081437,1.3003798,94822.0,94821.0,0.04938633]
[1746398081839,1.2003798,94822.0,94821.0,0.04938633]
[1746398082033,0.5503798,94822.0,94821.0,0.04938633]
[1746398082340,1.1398698,94822.0,94821.0,0.04938633]
[1746398082648,1.0398698,94822.0,94821.0,0.04938633]
[1746398082842,1.2308898,94822.0,94821.0,0.04938633]
[1746398083148,1.3488898,94822.0,94821.0,0.04938633]
[1746398083443,1.6096898,94822.0,94821.0,0.04938633]
[1746398084146,1.7096898,94822.0,94821.0,0.04938633]
[1746398084342,1.8151498,94822.0,94821.0,0.04938633]
[1746398084544,1.7096898,94822.0,94821.0,0.04938633]
[1746398084741,1.6996898,94822.0,94821.0,0.04938633]
[1746398085244,1.5816898,94822.0,94821.0,0.04938633]
[1746398085548,1.4816898,94822.0,94821.0,0.04938633]
[1746398085737,0.29,94822.0,94821.0,0.04938633]
[1746398085938,0.3608,94841.0,94821.0,0.50484633]
[1746398086136,0.3608,94852.0,94833.0,0.3608]
[1746398086342,0.13072598,94850.0,94834.0,0.44628633]
[1746398086641,0.2108609,94835.0,94834.0,0.3969]
[1746398086843,0.2108609,94835.0,94834.0,0.44802946]
[1746398086844,0.02,94835.0,94834.0,0.44802946]
[1746398087046,0.35,94835.0,94834.0,0.44802946]
[1746398087248,0.35,94835.0,94834.0,0.56602946]
[1746398087548,1.2608609,94835.0,94834.0,0.30002946]
[1746398087844,1.3863609,94835.0,94834.0,0.30002946]
[1746398088039,1.2408609,94835.0,94834.0,0.30002946]
[1746398088241,1.2408609,94835.0,94834.0,0.18202946]
[1746398088749,0.2508609,94835.0,94834.0,0.18202946]
[1746398089045,0.5808609,94835.0,94834.0,0.18202946]
[1746398089244,0.6008609,94835.0,94834.0,0.18202946]
[1746398089446,1.2308609,94835.0,94834.0,0.18202946]
[1746398089752,1.11227788,94835.0,94834.0,0.18202946]
[1746398090452,0.80227788,94835.0,94834.0,0.18202946]
[1746398090748,0.5808609,94835.0,94834.0,0.18202946]
[1746398090942,1.2408609,94835.0,94834.0,0.18202946]
[1746398091544,0.05,94835.0,94834.0,0.18202946]
[1746398091748,0.3977,94844.0,94834.0,0.18202946]
[1746398091941,0.4169,94844.0,94839.0,0.21085]
[1746398092143,0.4169,94844.0,94840.0,0.44972946]
[1746398092144,0.2108476,94841.0,94840.0,0.44972946]
[1746398092354,0.01,94841.0,94840.0,0.66057926]
[1746398092541,0.052708,94848.0,94840.0,0.44972946]
[1746398092741,0.200844,94843.0,94841.0,0.05112946]
[1746398092947,0.210844,94843.0,94842.0,0.31542946]
[1746398093144,0.00676043,94843.0,94842.0,0.43342946]
[1746398093349,0.16762598,94850.0,94844.0,0.2108395]
[1746398093350,0.13072598,94850.0,94844.0,0.2108395]
[1746398093549,0.02,94850.0,94845.0,0.05112946]
[1746398093844,0.41,94850.0,94846.0,0.05112946]
[1746398094040,0.210832,94848.0,94847.0,0.31992946]
[1746398094251,1.320322,94848.0,94847.0,0.30182946]
[1746398094555,1.551954,94848.0,94847.0,0.16912946]
[1746398094752,1.685054,94848.0,94847.0,0.16912946]
[1746398094959,1.569112,94848.0,94847.0,0.16912946]
[1746398095154,1.687112,94848.0,94847.0,0.05112946]
[1746398095360,1.792544,94848.0,94847.0,0.05112946]
[1746398095763,1.687112,94848.0,94847.0,0.05112946]
[1746398096152,1.569112,94848.0,94847.0,0.05112946]
[1746398096950,1.674544,94848.0,94847.0,0.05112946]
[1746398097155,1.664034,94848.0,94847.0,0.05112946]
[1746398098157,1.782034,94848.0,94847.0,0.05112946]
[1746398098554,0.2108587,94836.0,94835.0,0.1327]
[1746398098753,1.6616587,94836.0,94835.0,0.18427062]
[1746398099252,1.0506387,94836.0,94835.0,0.18427062]
[1746398099447,0.3198387,94836.0,94835.0,0.18427062]
[1746398099652,0.7198387,94836.0,94835.0,0.18427062]
[1746398100657,0.5898387,94836.0,94835.0,0.18427062]
[1746398100957,1.2593287,94836.0,94835.0,0.18427062]
[1746398101663,1.3880187,94836.0,94835.0,0.05157062]
[1746398102362,1.5060187,94836.0,94835.0,0.05157062]
[1746398102963,1.42432818,94836.0,94835.0,0.05157062]
[1746398103260,1.3372,94836.0,94835.0,0.05157062]
[1746398103460,1.52521228,94836.0,94835.0,0.05157062]
[1746398103855,1.51470228,94836.0,94835.0,0.05157062]
[1746398104059,1.50743185,94836.0,94835.0,0.05157062]
[1746398104255,1.49692185,94836.0,94835.0,0.05157062]
[1746398104456,1.47590185,94836.0,94835.0,0.05157062]
[1746398104656,1.46539185,94836.0,94835.0,0.05157062]
[1746398104964,0.32261871,94836.0,94835.0,0.05157062]
[1746398105262,0.08721209,94850.0,94835.0,0.66237062]
[1746398105454,0.02581,94844.0,94836.0,0.18217062]
[1746398105651,0.03581,94844.0,94843.0,0.2108431]
[1746398105851,0.02,94844.0,94843.0,0.03997062]
[1746398106059,0.2108248,94852.0,94844.0,0.21084]
[1746398106254,0.25,94851.0,94845.0,0.03997062]
[1746398106459,0.25,94851.0,94846.0,0.03997062]
[1746398106660,0.2108278,94850.0,94847.0,0.31707062]
[1746398106958,0.210832,94848.0,94847.0,0.2771]
[1746398107267,1.641632,94848.0,94847.0,0.17075555]
[1746398107563,1.747064,94848.0,94847.0,0.17075555]
[1746398107966,2.012464,94848.0,94847.0,0.17075555]
[1746398108266,2.130464,94848.0,94847.0,0.05275555]
[1746398108463,1.705032,94848.0,94847.0,0.05275555]
[1746398108669,1.985032,94848.0,94847.0,0.05275555]
[1746398108860,2.090464,94848.0,94847.0,0.05275555]
[1746398111067,1.985032,94848.0,94847.0,0.05275555]
[1746398111266,2.080112,94848.0,94847.0,0.05275555]
[1746398112157,2.185544,94848.0,94847.0,0.05275555]
[1746398112665,0.19313167,94812.0,94800.0,17.105]
[1746398112860,1.75807124,94812.0,94806.0,0.135]
[1746398113057,1.57544957,94812.0,94811.0,0.19590068]
[1746398113257,0.0527239,94820.0,94811.0,0.19590068]
[1746398113258,0.3608,94835.0,94823.0,0.2108868]
[1746398113457,1.3008,94835.0,94824.0,0.32790068]
[1746398113657,0.2108692,94832.0,94824.0,0.32790068]
[1746398113953,1.05,94832.0,94825.0,0.05290068]
[1746398114157,1.05,94832.0,94826.0,0.05290068]
[1746398114354,1.05,94832.0,94825.0,0.2486]
[1746398114355,0.50949,94832.0,94827.0,0.05290068]
[1746398114557,0.50949,94832.0,94828.0,0.31850068]
[1746398114766,0.50949,94832.0,94829.0,0.05290068]
[1746398114968,0.2108698,94831.0,94830.0,0.05290068]
[1746398115164,0.2108698,94831.0,94830.0,0.53170068]
[1746398115165,0.42,94831.0,94830.0,0.53170068]
[1746398115470,0.0015,94835.0,94830.0,0.88715267]
[1746398115669,0.3815,94835.0,94831.0,0.05290068]
[1746398115864,0.0527157,94834.0,94830.0,0.4788]
[1746398116068,0.37,94834.0,94831.0,0.05185861]
[1746398116364,0.2108698,94831.0,94830.0,0.4788]
[1746398116668,0.2108698,94831.0,94830.0,0.16986421]
[1746398116868,0.0527147,94836.0,94830.0,0.2753162]
[1746398117061,0.2108675,94833.0,94831.0,0.05186421]
[1746398117262,0.4,94833.0,94832.0,0.05186421]
[1746398117562,0.2108428,94844.0,94835.0,0.0527147]
[1746398117757,1.3108412,94844.0,94838.0,0.2108535]
[1746398117962,1.1,94844.0,94839.0,0.05186421]
[1746398118159,0.40949,94844.0,94840.0,0.05186421]
[1746398118362,0.0527107,94843.0,94841.0,0.05186421]
[1746398118567,1.2435538,94843.0,94842.0,0.18856421]
[1746398119070,1.2330438,94843.0,94842.0,0.30656421]
[1746398119273,1.1908431,94843.0,94842.0,0.30656421]
[1746398120263,0.98,94843.0,94842.0,0.30656421]
[1746398120460,0.96949,94843.0,94842.0,0.30656421]
[1746398120660,0.00210863,94848.0,94845.0,0.0527093]
[1746398120862,0.03689,94856.0,94855.0,0.2108165]
[1746398121060,0.001,94866.0,94855.0,0.54066421]
[1746398121260,0.001,94866.0,94865.0,0.5715942]
[1746398121469,0.211792,94866.0,94865.0,0.41266421]
[1746398121668,0.211792,94866.0,94865.0,0.5180762]
[1746398122062,1.161792,94866.0,94865.0,0.53066421]
[1746398122264,0.741792,94866.0,94865.0,0.53066421]
[1746398122567,1.522592,94866.0,94865.0,0.16986421]
[1746398122964,1.522592,94866.0,94845.0,0.3608]
[1746398122965,0.2003265,94846.0,94845.0,0.3608]
[1746398123170,1.1293065,94846.0,94845.0,0.53012275]
[1746398124072,1.1187965,94846.0,94845.0,0.53012275]
[1746398124572,1.1187965,94846.0,94845.0,0.16932275]
[1746398124966,0.95,94846.0,94845.0,0.16932275]
[1746398125270,0.93949,94846.0,94845.0,0.05132275]
[1746398125760,1.1503265,94846.0,94845.0,0.05132275]
[1746398126268,0.92898,94846.0,94845.0,0.2497309]
[1746398126667,0.36,94846.0,94845.0,0.2497309]
[1746398126868,0.36,94846.0,94845.0,0.4605696]
[1746398126869,0.07,94846.0,94845.0,0.4605696]
[1746398127162,0.3608,94857.0,94845.0,0.3677309]
[1746398127374,0.2108365,94846.0,94845.0,0.31640815]
[1746398127572,1.2508365,94846.0,94845.0,0.36774912]
[1746398128168,1.2403265,94846.0,94845.0,0.24974912]
[1746398128567,1.5512265,94846.0,94845.0,0.24974912]
[1746398129168,1.6692265,94846.0,94845.0,0.24974912]
[1746398129367,1.6587165,94846.0,94845.0,0.24974912]
[1746398131881,1.6687165,94846.0,94845.0,0.24974912]
[1746398132083,1.1187165,94846.0,94845.0,0.24974912]
[1746398132286,1.7387165,94846.0,94845.0,0.24974912]
[1746398133073,1.7282065,94846.0,94845.0,0.24974912]
[1746398133274,1.71042607,94846.0,94845.0,0.24974912]
[1746398135084,1.59242607,94846.0,94845.0,0.24974912]
[1746398137484,1.536336,94846.0,94841.0,0.12118684]
[1746398137684,0.20038871,94818.0,94815.0,0.10579872]
[1746398137885,1.68067871,94818.0,94817.0,0.4271832]
[1746398138388,1.68878182,94818.0,94817.0,0.41400207]
[1746398138892,2.01598182,94818.0,94817.0,0.41400207]
[1746398139082,2.17739697,94818.0,94817.0,0.41400207]
[1746398139283,2.17012654,94818.0,94817.0,0.41400207]
[1746398140184,2.05212654,94818.0,94817.0,0.41400207]
[1746398140490,1.72492654,94818.0,94817.0,0.41400207]
[1746398140990,1.70390654,94818.0,94817.0,0.41400207]
[1746398141389,1.70390654,94818.0,94817.0,0.05136436]
[1746398142182,1.69339654,94818.0,94817.0,0.05136436]
[1746398143179,1.68288654,94818.0,94817.0,0.05136436]
[1746398143390,1.67237654,94818.0,94817.0,0.05136436]
[1746398144582,1.66186654,94818.0,94817.0,0.05136436]
[1746398144785,1.54231826,94818.0,94817.0,0.05136436]
[1746398144985,1.13,94818.0,94817.0,0.61772926]
[1746398145186,0.3608,94825.0,94817.0,0.52482836]
[1746398145487,0.20038651,94819.0,94818.0,0.35846436]
[1746398145683,1.25038651,94819.0,94818.0,0.35846436]
[1746398145878,0.57038651,94819.0,94818.0,0.35846436]
[1746398146078,1.22038651,94819.0,94818.0,0.47646436]
[1746398146481,0.53987651,94819.0,94818.0,0.47646436]
[1746398146682,1.18987651,94819.0,94818.0,0.47646436]
[1746398148190,1.17936651,94819.0,94818.0,0.35846436]
[1746398148583,1.16885651,94819.0,94818.0,0.35846436]
[1746398149495,1.15834651,94819.0,94818.0,0.35846436]
[1746398149685,1.20787899,94819.0,94818.0,0.35846436]
[1746398150691,1.19736899,94819.0,94818.0,0.35846436]